Cogmind - Beta 16 *** ADVENTURER MODE // 2025.12.28 @ 15:08:40 Player: Lukysa Result: Destroyed by G-73 Enforcer with Heavy Laser Performance ------------- Evolutions (8) 4000 Regions Visited (12) 2400 Robots Destroyed (220) 1100 Value Destroyed (8719) 8719 Prototype IDs (10) 200 Alien Tech Used (0) 0 Bonus (2135) 2135 TOTAL SCORE: 18554 Bonus ------- High Alert Combat Kills 838 Follower Combat Kills 297 Entered Garrisons 200 Used RIF Installer 500 Registered with UFD 300 Cogmind --------- Core Integrity 0/1450 Matter 5/300 Energy 28/100 System Corruption 0% Temperature Cool (0) Movement Core (50) Location -2/Research Parts ------- > --- POWER (3) -------- (None) > --- PROPULSION (6) --- (None) > --- UTILITY (9) ------ (None) > --- WEAPON (5) ------- (None) > --- INVENTORY (5) ---- Improved Quantum Reactor Armored Huge Wheel Particle Charger HERF Cannon Peak State ------------ > --- POWER ------------ Micro Fission Core Micro Antimatter Reactor > --- PROPULSION ------- Antigrav System Combat Gravmag System Improved Antigrav System Improved Antigrav System Improved Antigrav System Improved Linear Gravjet > --- UTILITY ---------- Advanced Power Amplifier Advanced Cryofiber Web Advanced Heat Sink Advanced Heat Sink Medium Storage Unit Advanced Matter Compressor Kinecellerator Improved Medium Armor Plating > --- WEAPON ----------- KE Penetrator Hardcell Cannon Compact Mass Driver Heavy Mace > --- INVENTORY -------- Light Antimatter Reactor Improved Quantum Reactor Improved Antigrav System Particle Charger Improved Force Field Phase Gun HERF Cannon HERF Cannon Heavy Gauss Cannon Micro-nuke Launcher [Rating: 126] Favorites ----------- Power Light Nuclear Core Engine Light Angular Momentum Engine Power Core Light Nuclear Core Reactor Particle Reactor Propulsion Compact Wheel Treads Medium Treads Leg Carbon-fiber Leg Wheel Compact Wheel Hover Unit Antigrav System Flight Unit VTOL Module Utility Advanced Heat Sink Device Advanced Heat Sink Storage Medium Storage Unit Processor Improved Signal Interpreter Hackware System Shield Protection Improved Medium Armor Plating Weapon Tesla Rifle Energy Gun Tesla Rifle Energy Cannon Plasma Cannon Ballistic Gun KE Penetrator Ballistic Cannon Mass Driver Launcher Heavy Missile Launcher Special Weapon Improved Remote Datajack Impact Weapon Heavy Mace Slashing Weapon Axe Piercing Weapon Enhanced Force Lance Build | -11 -10 -10 -8 -6 -5 -5 -5 -4 -4 -4 -3 -2 ------- Run | Yrd Mat Sub Scr Fac Fac Gar Fac Fac Was Fac Res Res Slots Evolved 16 | . . . . 8 2 . . 2 . . 2 2 Power 2 | . . . . 1 . . . . . . . 1 Propulsion 4 | . . . . 2 1 . . . . . 1 . Utility 7 | . . . . 4 . . . 1 . . 1 1 Weapon 3 | . . . . 1 1 . . 1 . . . . Parts Attached 249 | 4 13 3 2 18 38 41 35 12 2 58 20 3 Power 30 | . 3 . 1 2 4 8 3 2 . 5 2 . Engine 7 | . 1 . . . 2 2 1 . . 1 . . Core 17 | . 2 . 1 2 2 4 2 . . 4 . . Reactor 6 | . . . . . . 2 . 2 . . 2 . Propulsion 98 | 2 5 . 1 8 17 18 15 4 1 19 7 1 Treads 17 | 2 . . . . 5 3 2 4 . 1 . . Leg 11 | . . . . . 7 1 1 . 1 1 . . Wheel 26 | . . . . . 3 . 12 . . 10 . 1 Hover 19 | . 3 . . . 2 . . . . 7 7 . Flight 25 | . 2 . 1 8 . 14 . . . . . . Utility 61 | . 4 . . 1 10 5 9 5 1 21 5 . Device 38 | . 2 . . 1 6 4 4 3 1 12 5 . Storage 9 | . 2 . . . 1 . 1 1 . 4 . . Processor 5 | . . . . . 1 . 2 . . 2 . . Hackware 2 | . . . . . . . 1 . . 1 . . Protection 7 | . . . . . 2 1 1 1 . 2 . . Artifact . | . . . . . . . . . . . . . Weapon 60 | 2 1 3 . 7 7 10 8 1 . 13 6 2 Energy Gun 18 | . . 1 . . 2 7 3 . . 3 1 1 Energy Cannon 3 | . . . . . 1 . . . . 1 1 . Ballistic Gun 20 | 2 1 1 . 6 2 2 1 1 . 3 1 . Ballistic Cannon 9 | . . 1 . . 1 1 2 . . 2 2 . Launcher 3 | . . . . 1 1 . . . . 1 . . Special Weapon 3 | . . . . . . . . . . 2 . 1 Impact Weapon 1 | . . . . . . . . . . . 1 . Slashing Weapon 1 | . . . . . . . 1 . . . . . Piercing Weapon 2 | . . . . . . . 1 . . 1 . . Special Melee Weapon . | . . . . . . . . . . . . . Unidentified Prototypes 7 | . . . . 1 1 . 1 1 . 2 1 . Corrupted Parts 4 | . . . . . . 1 1 1 . 1 . . System Corruption 8 | . . . . . . 1 3 1 . 3 . . Parts Lost 96 | . 1 . . 15 7 27 . 2 . 22 20 2 Power 10 | . 1 . . 3 1 2 . . . 2 1 . Propulsion 41 | . . . . 8 2 12 . 1 . 8 10 . Utility 21 | . . . . 2 2 5 . . . 6 6 . Weapon 24 | . . . . 2 2 8 . 1 . 6 3 2 Highest Loss Streak 17 | . 1 . . 12 2 12 . 2 . 10 17 1 To Critical Strikes 3 | . . . . 1 . 2 . . . . . . Average Backups 8 | 2 6 7 8 6 8 7 9 8 5 6 9 3 Power 1 | 1 1 1 . . 1 2 1 1 1 . 1 1 Propulsion . | . 1 1 1 . . . . . . 1 . . Utility 2 | . 1 1 1 1 1 1 4 2 1 4 2 1 Weapon 3 | . 1 3 4 4 5 3 3 4 2 . 4 . Tool/Special . | . . . . . . . . . . . . . Unused Backups 26 | 1 5 . 3 . . 2 4 4 1 1 3 2 Power 5 | 1 1 . . . . 1 . 1 . . . 1 Propulsion 1 | . 1 . . . . . . . . . . . Utility 7 | . 1 . . . . . 3 1 1 . . 1 Weapon 13 | . 2 . 3 . . 1 1 2 . 1 3 . Tool/Special . | . . . . . . . . . . . . . Average Slot Usage (%) 83 | . 86 94 84 45 77 85 94 92 . 75 89 3 Engine 1 | . 2 . . . 2 2 3 3 . 1 . . Core 6 | . 9 14 14 3 5 4 4 4 . 6 7 . Reactor 1 | . . . . . . 3 2 1 . . 1 . Treads 4 | . 7 . . . 4 3 5 22 . 2 . . Leg 2 | . . . . . 10 1 1 . . . . . Wheel 5 | . . . . . 2 2 19 3 . 10 . . Hover 4 | . 5 . . . 2 2 . . . 7 25 . Flight 7 | . 15 28 27 16 3 9 . . . . . . Device 14 | . 9 14 14 6 14 18 15 11 . 13 20 . Storage 6 | . 9 14 14 6 5 5 5 5 . 4 6 . Processor 2 | . . . . . 1 5 2 . . 5 2 . Protection 2 | . . . . . 3 . 3 9 . 1 3 . Energy Gun 5 | . . . . . 3 9 9 9 . 4 2 . Ballistic Gun 7 | . 26 18 9 10 8 4 3 9 . 3 3 . Ballistic Cannon 3 | . . 4 4 . 1 1 8 4 . 1 8 . Peak Build Rating 126 | 4 12 15 13 31 82 79 81 103 20 115 126 24 Average Rating 61 | 3 8 11 12 20 59 61 74 93 5 73 115 9 On Entrance 30 | . 4 12 11 13 19 65 76 75 3 3 110 2 Avg Prop Armor Cover (%) 7 | 27 15 . . . 7 7 7 1 . 6 . . Naked Turns 128 | . . . . . . . . 14 47 13 3 51 Heaviest Build 108 | 3 14 14 14 20 71 74 94 108 1 83 83 23 Greatest Support 136 | 20 18 14 14 24 93 68 86 136 3 68 74 28 Greatest Overweight (x) 24 | . 2 . . 1 3 24 2 4 . 14 2 1 Average Overweight (x) . | . . . . . . 1 . . . . . . Largest Inventory Capacity 10 | 5 10 8 8 8 10 10 10 10 5 10 10 5 Average Capacity 9 | 5 7 8 8 8 8 10 10 9 5 9 9 5 Most Carried 10 | 5 8 8 8 8 10 10 10 10 5 10 10 5 Average Carried 8 | 2 6 7 7 6 8 7 9 8 4 6 9 4 Final Capacity 10 | 5 8 8 8 8 10 10 10 5 5 10 5 5 Final Carried 10 | 5 8 8 8 8 8 10 10 5 5 10 4 5 Class Distribution -------------------- 43% | Scavenger-Gunner 23% | Mutant 20% | Scavenger-Tank 6% | Scavenger-Mutant Dominant Class ---------------- Mutant | -10/Materials Mutant | -10/Subcaves Mutant | -8/Scraptown Mutant | -6/Factory Scavenger-Tank | -5/Factory Scavenger-Gunner | -5/Garrison Scavenger-Gunner | -5/Factory Scavenger-Tank | -4/Factory Mutant | -4/Waste Scavenger-Tank | -4/Factory Scavenger-Gunner | -3/Research Mutant | -2/Research Resources | -11 -10 -10 -8 -6 -5 -5 -5 -4 -4 -4 -3 -2 ----------- Run | Yrd Mat Sub Scr Fac Fac Gar Fac Fac Was Fac Res Res Matter Collected 7712 | 248 265 120 170 174 1384 1172 1312 735 23 1518 574 17 Remotely 143 | . . . . . . . . . . 143 . . Salvage Created 9793 | 107 593 116 . 464 2085 1295 1276 1187 . 1621 1049 . Parts 453 | 6 39 8 . 18 84 61 66 59 . 70 42 . Haulers Intercepted 7 | . 2 . . . 1 . 2 . . 1 1 . Recyclers Shooed 8 | . . . . . 2 . 1 2 . 3 . . Parts Field Recycled . | . . . . . . . . . . . . . Retrieved Matter . | . . . . . . . . . . . . . Parts Self-Destructed 3 | . . 3 . . . . . . . . . . Prevented . | . . . . . . . . . . . . . Parts Restored . | . . . . . . . . . . . . . Kills | -11 -10 -10 -8 -6 -5 -5 -5 -4 -4 -4 -3 -2 ------- Run | Yrd Mat Sub Scr Fac Fac Gar Fac Fac Was Fac Res Res Combat Hostiles Destroyed 139 | . 7 3 . 12 25 34 12 14 . 19 13 . Melee 5 | . . . . . . . . . . 5 . . Guns 76 | . 7 3 . 9 14 17 5 9 . 9 3 . Cannons 29 | . . . . . 4 7 6 5 . 2 5 . AOE 24 | . . . . 2 7 8 . . . 3 4 . Classes Destroyed 15 | 2 4 1 . 1 5 1 . 1 . . . . Worker 18 | . 1 . . 1 4 . 2 5 . 3 2 . Builder 19 | . . . . . 8 . 5 2 . 1 3 . Tunneler 5 | 1 . . . . 1 . 1 . . 2 . . Hauler 7 | . 2 . . . 1 . 2 . . 1 1 . Recycler 15 | 1 1 . . . 4 . 4 1 . 4 . . Mechanic 2 | . . . . . 1 . . . . . 1 . Operator 1 | . . . . . . . . 1 . . . . Watcher 14 | . 3 . . . . . 3 3 . 2 3 . Swarmer 36 | . . . . 7 . 18 3 3 . 5 . . Cutter 2 | . . . . . . 2 . . . . . . Grunt 52 | . 7 . . 5 20 3 4 6 . 2 5 . Sentry 13 | . . . . . 1 7 1 1 . 2 1 . Hunter 6 | . . . . . 1 1 1 . . 1 2 . Programmer 27 | . . . . . 3 3 3 4 . 9 5 . Subdweller 3 | . . 3 . . . . . . . . . . Best Kill Streak 11 | 2 4 2 . 4 10 9 5 8 . 8 11 . Combat Bots Only 9 | . 3 2 . 4 9 9 3 5 . 5 4 . Max Kills in Single Turn 4 | 1 1 1 . 3 4 3 2 4 . 4 3 . Gunslinging . | . . . . . . . . . . . . . Exploded 3 | . . . . 2 2 3 . . . 2 2 . Melee 1 | . . . . . . . . . . 1 . . Uniques/NPCs Destroyed . | . . . . . . . . . . . . . Combat | -11 -10 -10 -8 -6 -5 -5 -5 -4 -4 -4 -3 -2 -------- Run | Yrd Mat Sub Scr Fac Fac Gar Fac Fac Was Fac Res Res Hostile Shots Fired 1696 | . 25 16 33 210 157 229 62 279 3 288 260 134 Missed 569 | . 11 7 17 96 38 70 19 88 . 89 96 38 Hits 1127 | . 14 9 16 114 119 159 43 191 3 199 164 96 Melee 3 | . . . . . . . . . 3 . . . Projectile 1124 | . 14 9 16 114 119 159 43 191 . 199 164 96 AOE 4 | . . . . . . 3 1 . . . . . Critical Strikes 47 | . . . 1 3 5 6 2 6 . 13 11 . Part Disruptions 3 | . . . . . 1 . . . . . 2 . Damage Taken 17061 | . 156 162 229 1444 1941 2906 872 1917 107 2989 2641 1697 Core 4317 | . 36 36 121 438 234 403 64 568 107 344 510 1456 Absorbed by Shields 1053 | . . . . . . . . 892 . 92 69 . Ignored by Resistances 4971 | . 44 46 63 410 524 799 241 718 29 874 763 460 Regen/Repaired (Parts) 306 | . . . . . 113 . 159 34 . . . . Core Remaining (%) 45 | 100 . . 22 48 . . 29 . . 11 60 . Volleys Fired 484 | 2 30 42 1 36 73 78 47 55 . 68 44 8 Largest 5 | 2 2 2 1 3 4 4 4 5 . 4 4 1 Hottest 278 | 40 40 43 30 86 234 278 221 243 . 253 235 94 Shots Fired 1323 | 4 60 58 1 78 270 235 159 185 . 119 146 8 Gun 929 | 4 60 32 1 78 188 181 84 151 . 77 69 4 Cannon 367 | . . 26 . . 72 49 75 34 . 34 73 4 Launcher 21 | . . . . . 10 5 . . . 2 4 . Special 6 | . . . . . . . . . . 6 . . Kinetic 835 | 4 60 58 1 78 148 85 103 118 . 74 106 . Thermal 273 | . . . . . 112 110 10 . . 20 17 4 Explosive 21 | . . . . . 10 5 . . . 2 4 . Electromagnetic 189 | . . . . . . 35 46 67 . 18 19 4 Robot Hit Streak 42 | 2 8 12 . 11 29 42 13 8 . 33 13 2 Robot Miss Streak 7 | . 3 1 . 3 1 3 7 4 . 4 4 2 Penetration Max 2 | . . . . . 1 1 1 2 . 1 1 . Secondary Targets 7 | . 1 . . 2 1 1 . . . 2 . . Max Gunslinging Chain 1 | . 1 . . 1 1 1 . . . 1 . . Shots Hit Robots 878 | 2 43 29 . 50 200 143 100 95 . 119 94 3 Core Hits 435 | 2 27 8 . 23 90 70 68 48 . 56 41 2 Critical Kills 8 | . 1 . . . 2 . . 4 . 1 . . Critical Parts Destroyed 18 | . . . . 1 3 1 . 7 . 3 3 . Critical Strikes 60 | . 1 . . 1 9 7 3 17 . 9 13 . Burn 5 | . . . . . 2 2 . . . . 1 . Destroy 26 | . 1 . . 1 5 2 . 11 . 4 2 . Blast 18 | . . . . . 2 3 2 3 . . 8 . Corrupt 6 | . . . . . . . 1 3 . 1 1 . Smash 1 | . . . . . . . . . . . 1 . Impale 4 | . . . . . . . . . . 4 . . Melee Attacks 36 | . . . . . . . . . . 31 5 . Impact 5 | . . . . . . . . . . . 5 . Slashing . | . . . . . . . . . . . . . Piercing 31 | . . . . . . . . . . 31 . . Sneak Attacks 8 | . . . . . . . . . . 8 . . Combat Hostiles . | . . . . . . . . . . . . . Follow-up Attacks . | . . . . . . . . . . . . . Damage Inflicted 28508 | 27 472 336 . 1284 6614 4094 3120 3678 . 4693 4030 160 Guns 14447 | 27 472 336 . 951 3447 2684 1473 1994 . 1689 1262 112 Cannons 6453 | . . . . . 1341 710 1590 591 . 745 1434 42 Explosions 5670 | . . . . 333 1791 700 57 1003 . 536 1250 . Melee 1783 | . . . . . . . . . . 1699 84 . Ramming 131 | . . . . . 35 . . 90 . . . 6 Kinetic 13174 | 27 472 336 . 951 2476 1412 2175 1395 . 1796 2134 . Thermal 5905 | . . . . . 2312 1733 260 1003 . 280 205 112 Explosive 4457 | . . . . 250 1791 600 30 . . 536 1250 . Electromagnetic 3058 | . . . . 83 . 349 655 1190 . 382 357 42 Impact 84 | . . . . . . . . . . . 84 . Slashing . | . . . . . . . . . . . . . Piercing 1699 | . . . . . . . . . . 1699 . . Highest Corruption 34 | . . . 1 1 9 12 19 11 11 34 8 . Average Corruption 11 | . . . 1 1 7 10 16 3 11 21 2 . Corruption Purged . | . . . . . . . . . . . . . Corruption Blocked . | . . . . . . . . . . . . . Effects 250 | . . . . 1 38 77 63 12 2 55 2 . Message Errors 58 | . . . . . 9 13 21 3 1 11 . . Matter Fused 66 | . . . . . 10 20 13 3 . 19 1 . Heat Flow Errors 15 | . . . . . 1 7 4 . . 3 . . Energy Discharges 35 | . . . . . 6 13 5 1 . 9 1 . Parts Rejected 4 | . . . . . 1 1 . . . 2 . . Parts Fused 2 | . . . . . 1 1 . . . . . . Data Loss (minor) 27 | . . . . 1 4 11 7 2 . 2 . . Data Loss (major) 15 | . . . . . 2 6 3 1 . 3 . . Misfires 5 | . . . . . 1 1 3 . . . . . Alerts 8 | . . . . . 1 3 3 . . 1 . . Misdirections 4 | . . . . . . . . 2 1 1 . . Weapon Failures 11 | . . . . . 2 1 4 . . 4 . . Overload Shots . | . . . . . . . . . . . . . Overflow Damage 834 | . . . . . 246 39 40 189 . 186 134 . Projectiles 240 | . . . . . 49 14 40 24 . 41 72 . Explosions 412 | . . . . . 184 25 . 165 . 35 3 . Melee 182 | . . . . . 13 . . . . 110 59 . Knockbacks 57 | . . . . . 6 . 22 6 . 7 16 . Impact 4 | . . . . . 1 . . 1 . . 2 . Kinetic 46 | . . . . . 5 . 19 4 . 7 11 . Secondary 7 | . . . . . . . 3 1 . . 3 . Self-Inflicted Damage 424 | . . . . 40 97 166 . 53 . 28 37 3 Shots 13 | . . . . 2 3 4 . 1 . 1 2 . Rammed 9 | . . . . . 1 . . 6 . . . 2 Targets Rammed 9 | . . . . . 1 . . 6 . . . 2 Kicked . | . . . . . . . . . . . . . Crushed . | . . . . . . . . . . . . . Highest Temperature 713 | . 19 . 27 73 135 199 420 713 . 283 178 42 Average Temperature 102 | . 5 . 8 28 51 61 106 193 . 80 51 21 Received Heat Transfer 3454 | . 117 27 103 477 837 567 120 252 . 222 462 270 Effects 26 | . . . . . . . 4 22 . . . . Shutdowns 10 | . . . . . . . 1 9 . . . . Energy Bleed 1 | . . . . . . . . 1 . . . . Interference 9 | . . . . . . . 3 6 . . . . Short Circuit 1 | . . . . . . . . 1 . . . . Damage (minor) 2 | . . . . . . . . 2 . . . . Damage (major) 1 | . . . . . . . . 1 . . . . Damage (core) 2 | . . . . . . . . 2 . . . . Siege Activations . | . . . . . . . . . . . . . Martial Activations . | . . . . . . . . . . . . . Shielding Activations . | . . . . . . . . . . . . . Robots Disrupted 2 | . . . . . . . 1 . . 1 . . Combat Hostiles 2 | . . . . . . . 1 . . 1 . . Robots Corrupted 6 | . . . . 1 . . 1 3 . . 1 . Combat Hostiles 3 | . . . . 1 . . 1 . . . 1 . Parts Fried 14 | . . . . 4 . . 1 4 . 1 4 . Impact Corruptions 2 | . . . . . 1 . . . . . 1 . Robots Melted 2 | . . . . . . 2 . . . . . . Combat Hostiles 2 | . . . . . . 2 . . . . . . Parts Melted 13 | . . . . . 6 6 . . . 1 . . Heat Transferred 9842 | . . . . . 4098 3369 400 750 . 559 518 148 Parts Sabotaged . | . . . . . . . . . . . . . Parts Stolen . | . . . . . . . . . . . . . Parts Stripped . | . . . . . . . . . . . . . Power Chain Reactions 7 | . . . . . . 2 1 4 . . . . Alert | -11 -10 -10 -8 -6 -5 -5 -5 -4 -4 -4 -3 -2 ------- Run | Yrd Mat Sub Scr Fac Fac Gar Fac Fac Was Fac Res Res Maximum Alert Level 4 | . . . . 2 2 4 2 1 . 1 1 . Low Security (%) 53 | 100 100 . . 56 50 . 36 94 100 99 89 100 Level 1 11 | . . . . 43 31 2 15 5 . . 10 . Level 2 15 | . . . . . 18 17 48 . . . . . Level 3 9 | . . . . . . 35 . . . . . . Level 4 11 | . . . . . . 43 . . . . . . Level 5 . | . . . . . . . . . . . . . High Security . | . . . . . . . . . . . . . Max Security . | . . . . . . . . . . . . . Peak Influence 1345 | 10 110 . . 407 572 1345 672 267 66 205 386 111 Initial 611 | . . . . . 171 360 611 34 66 27 84 111 Average 365 | 2 75 . . 155 255 921 364 87 55 32 94 92 Influence Increases 6149 | 10 239 . . 677 1163 1255 632 652 . 767 724 30 Destroy 0b10 Robot/C 2840 | . 140 . . 240 580 680 240 300 . 400 260 . Destroy 0b10 Robot/NC 425 | 10 35 . . 5 100 5 85 65 . 70 50 . Destroy Leader 542 | . 40 . . 30 122 30 70 66 . 106 78 . Allied During Kill 18 | . . . . . 12 . 2 1 . 3 . . Successful Hack 307 | . 9 . . 7 106 12 6 49 . 40 78 . Disable Machine 378 | . . . . 36 81 9 99 72 . 63 18 . Anti-Garrison Action 350 | . . . . . . 350 . . . . . . Destroy Structure 749 | . . . . 14 162 169 100 84 . 40 180 . Partial Spotted 30 | . . . . 15 . . . . . . 15 . Lose Combat Pursuer 510 | . 15 . . 330 . . 30 15 . 45 45 30 Influence Decreases 6078 | 10 170 69 . 270 986 494 1894 508 181 628 681 187 Entered New Map 1680 | . . 39 . . 236 224 734 49 161 19 101 117 Time Decay 2941 | 10 160 30 . 120 620 . 710 395 20 446 380 50 Lost Part 873 | . 10 . . 150 70 270 . 20 . 133 200 20 Lost Ally 110 | . . . . . 60 . . 20 . 30 . . Purge Threat 474 | . . . . . . . 450 24 . . . . Squads Dispatched 41 | . . . . 5 9 . 7 6 . 8 5 1 Investigation 12 | . . . . 2 2 . 2 2 . 1 2 1 Extermination 11 | . . . . . 2 . 3 2 . 2 2 . Reinforcement 11 | . . . . 3 2 . 1 2 . 2 1 . Assault 1 | . . . . . 1 . . . . . . . Garrison 6 | . . . . . 2 . 1 . . 3 . . Intercept . | . . . . . . . . . . . . . Searches Triggered . | . . . . . . . . . . . . . Construction Impeded 8 | . . . . . 2 . 1 2 . 2 1 . Haulers Reinforced 1 | . . . . 1 . . . . . . . . Active Scanning Responses . | . . . . . . . . . . . . . Cargo Convoy Interrupts 1 | . . . . . . . . 1 . . . . Stealth | -11 -10 -10 -8 -6 -5 -5 -5 -4 -4 -4 -3 -2 --------- Run | Yrd Mat Sub Scr Fac Fac Gar Fac Fac Was Fac Res Res Distress Signals 10 | . 1 . . 3 2 . 1 . . . 3 . Communications Jammed . | . . . . . . . . . . . . . Distress Signals . | . . . . . . . . . . . . . Times Spotted 282 | . 11 3 12 43 37 31 19 47 6 29 34 10 Peak Tracking Total 17 | . 4 2 16 16 7 6 4 17 6 6 14 9 Tactical Retreats 14 | . 1 . . 7 . . 1 1 . 1 1 2 Traps | -11 -10 -10 -8 -6 -5 -5 -5 -4 -4 -4 -3 -2 ------- Run | Yrd Mat Sub Scr Fac Fac Gar Fac Fac Was Fac Res Res Traps Triggered 24 | . . . . . 3 6 5 2 . 6 2 . Indirectly . | . . . . . . . . . . . . . Trap Hack Attempts . | . . . . . . . . . . . . . Triggered . | . . . . . . . . . . . . . Disarmed . | . . . . . . . . . . . . . Reprogrammed . | . . . . . . . . . . . . . Reused . | . . . . . . . . . . . . . Traps Extracted . | . . . . . . . . . . . . . Installed . | . . . . . . . . . . . . . Triggered . | . . . . . . . . . . . . . Machines | -11 -10 -10 -8 -6 -5 -5 -5 -4 -4 -4 -3 -2 ---------- Run | Yrd Mat Sub Scr Fac Fac Gar Fac Fac Was Fac Res Res Machines Disabled 44 | . . . . 4 9 3 11 8 . 7 2 . Max in Single Turn 4 | . . . . 2 4 2 4 3 . 3 1 . Garrison Access 1 | . . . . . . . 1 . . . . . Phase Generator 1 | . . . . . . 1 . . . . . . Machines Repaired . | . . . . . . . . . . . . . Machines Dismantled . | . . . . . . . . . . . . . Machines Sabotaged . | . . . . . . . . . . . . . Overloaded Fab Kills . | . . . . . . . . . . . . . Hacking | -11 -10 -10 -8 -6 -5 -5 -5 -4 -4 -4 -3 -2 --------- Run | Yrd Mat Sub Scr Fac Fac Gar Fac Fac Was Fac Res Res Machines Accessed 43 | . 5 . . 3 9 2 6 5 . 7 5 1 Terminals 23 | . 4 . . 3 2 2 2 3 . 6 1 . Fabricators 4 | . . . . . 3 . . . . . 1 . Repair Stations 3 | . . . . . 1 . 1 1 . . . . Recycling Units 7 | . 1 . . . . . 2 1 . 1 1 1 Scanalyzers 4 | . . . . . 2 . . . . . 2 . Garrison Access 2 | . . . . . 1 . 1 . . . . . Total Hacks 112 | . 11 . . 8 25 4 18 15 . 19 10 2 Successful 61 | . 8 . . 1 15 1 12 8 . 10 5 1 Failed 50 | . 3 . . 7 10 3 6 7 . 9 4 1 Catastrophic 10 | . . . . 2 1 1 . . . 3 2 1 Database Lockouts 1 | . . . . . . . . . . . 1 . Manual 8 | . . . . 2 . . 1 . . 5 . . Terminals 62 | . 10 . . 8 5 4 7 8 . 18 2 . Fabricators 4 | . . . . . 3 . . . . . 1 . Repair Stations 15 | . . . . . 7 . 5 3 . . . . Recycling Units 15 | . 1 . . . . . 5 4 . 1 2 2 Scanalyzers 13 | . . . . . 8 . . . . . 5 . Garrison Access 3 | . . . . . 2 . 1 . . . . . Terminal Hacks 30 | . 7 . . 1 3 1 4 5 . 8 1 . Record 5 | . . . . . 1 . . 2 . 1 1 . Robot Analysis 1 | . 1 . . . . . . . . . . . Prototype ID Bank 1 | . . . . . . . . . . 1 . . Level Access Points 1 | . 1 . . . . . . . . . . . Branch Access Points 4 | . 1 . . 1 1 . . 1 . . . . Emergency Access Points 1 | . . . . . . . . . . 1 . . Alert Level 4 | . . . . . 1 . 1 . . 2 . . Unreport Threat 4 | . . . . . . . 3 1 . . . . Locate Traps 3 | . 1 . . . . . . 1 . 1 . . Dispatch Records 1 | . . . . . . . . . . 1 . . Patrol Status 1 | . 1 . . . . . . . . . . . Registered Components 1 | . . . . . . . . . . 1 . . Zone Layout 2 | . 2 . . . . . . . . . . . Patrol Navigation 1 | . . . . . . 1 . . . . . . Fabricator Hacks 4 | . . . . . 3 . . . . . 1 . Build 4 | . . . . . 3 . . . . . 1 . Repair Station Hacks 10 | . . . . . 4 . 4 2 . . . . Scan Component 5 | . . . . . 2 . 2 1 . . . . Repair 5 | . . . . . 2 . 2 1 . . . . Recycling Unit Hacks 8 | . 1 . . . . . 3 1 . 1 1 1 Report Inventory 7 | . 1 . . . . . 3 1 . 1 1 . Retrieve Components 1 | . . . . . . . . . . . . 1 Scanalyzer 6 | . . . . . 4 . . . . . 2 . Retrieve Study 6 | . . . . . 4 . . . . . 2 . Garrison Access Hacks 2 | . . . . . 1 . 1 . . . . . Unlock Access 1 | . . . . . 1 . . . . . . . Seal Access 1 | . . . . . . . 1 . . . . . Unauthorized Hacks 1 | . . . . . . . . . . 1 . . Terminals 1 | . . . . . . . . . . 1 . . Assimilate 1 | . . . . . . . . . . 1 . . Fabricators . | . . . . . . . . . . . . . Repair Stations . | . . . . . . . . . . . . . Recycling Units . | . . . . . . . . . . . . . Scanalyzers . | . . . . . . . . . . . . . Garrison Access . | . . . . . . . . . . . . . Data Cores Recovered 2 | . . . . . . . . 2 . . . . Used 1 | . . . . . . . . 1 . . . . Hacking Detections 32 | . 3 . . 3 8 1 3 5 . 5 3 1 Full Trace Events 11 | . . . . 2 2 . 2 2 . 1 1 1 Feedback Events . | . . . . . . . . . . . . . Feedback Blocked . | . . . . . . . . . . . . . Robot Schematics Acquired . | . . . . . . . . . . . . . Robots Built 4 | . . . . . 4 . . . . . . . Authchips . | . . . . . . . . . . . . . Time 100 | . . . . . 100 . . . . . . . Total Robot Build Rating 20 | . . . . . 20 . . . . . . . Part Schematics Acquired . | . . . . . . . . . . . . . Parts Built 3 | . . . . . 2 . . . . . 1 . Authchips . | . . . . . . . . . . . . . Time 202 | . . . . . 128 . . . . . 74 . Total Part Build Rating 25 | . . . . . 16 . . . . . 9 . Part Studies Acquired 6 | . . . . . 4 . . . . . 2 . Parts Repaired 4 | . . . . . 1 . 2 1 . . . . Time 228 | . . . . . 112 . 88 28 . . . . Parts Recycled . | . . . . . . . . . . . . . Recycled Matter . | . . . . . . . . . . . . . Retrieved Matter . | . . . . . . . . . . . . . Retrieved Components 1 | . . . . . . . . . . . . 1 Parts Scanalyzed . | . . . . . . . . . . . . . Part Schematics Acquired . | . . . . . . . . . . . . . Parts Damaged . | . . . . . . . . . . . . . Bothacking | -11 -10 -10 -8 -6 -5 -5 -5 -4 -4 -4 -3 -2 ------------ Run | Yrd Mat Sub Scr Fac Fac Gar Fac Fac Was Fac Res Res Used RIF Installer 1 | . . . . . . 1 . . . . . . Robots Hacked 2 | . . . . . . . . . . 2 . . Non-combat 2 | . . . . . . . . . . 2 . . Combat . | . . . . . . . . . . . . . Robot Hacks Applied 4 | . . . . . . . . . . 4 . . no_distress 3 | . . . . . . . . . . 3 . . find_recycling 1 | . . . . . . . . . . 1 . . Relay Couplers Released . | . . . . . . . . . . . . . Fabnet Peak Effective % . | . . . . . . . . . . . . . Robots Rewired 2 | . . . . . . . 1 . . 1 . . Allies Hacked . | . . . . . . . . . . . . . Hacks Repelled . | . . . . . . . . . . . . . Allies | -11 -10 -10 -8 -6 -5 -5 -5 -4 -4 -4 -3 -2 -------- Run | Yrd Mat Sub Scr Fac Fac Gar Fac Fac Was Fac Res Res Total Allies 7 | . . . . . 4 . 1 . . 2 . . Largest Group 4 | . . . . . 4 . 1 1 . 1 . . Highest-Rated Group 122 | . . . . . 122 . 29 29 . 56 . . Highest-Rated Ally 56 | . . . . . 41 . 29 29 . 56 . . Total Orders . | . . . . . . . . . . . . . Ally Attacks 48 | . . . . . 25 . . 10 . 13 . . Total Damage 1515 | . . . . . 829 . . 152 . 534 . . Kills 9 | . . . . . 5 . . 2 . 2 . . Allies Corrupted . | . . . . . . . . . . . . . Allies Melted . | . . . . . . . . . . . . . Intel | -11 -10 -10 -8 -6 -5 -5 -5 -4 -4 -4 -3 -2 ------- Run | Yrd Mat Sub Scr Fac Fac Gar Fac Fac Was Fac Res Res Active Infowar (turns) 127 | . . . . 1 123 . 1 . 1 . 1 . Sensors 124 | . . . . 1 123 . . . . . . . Structural 1 | . . . . . . . 1 . . . . . Cloaking 2 | . . . . . . . . . 1 . 1 . Robot Analysis Total 1 | . 1 . . . . . . . . . . . Derelict Logs Recovered 1 | . . . 1 . . . . . . . . . Drone Launches . | . . . . . . . . . . . . . Drone Recoveries . | . . . . . . . . . . . . . Exploration | -11 -10 -10 -8 -6 -5 -5 -5 -4 -4 -4 -3 -2 ------------- Run | Yrd Mat Sub Scr Fac Fac Gar Fac Fac Was Fac Res Res Turns Passed 9757 | 56 326 763 472 299 1250 2166 1434 907 59 1149 770 106 Spaces Moved 8118 | 73 391 860 1304 371 591 1516 947 431 108 651 764 111 Core 371 | 72 21 . . . . 12 . 29 108 27 8 94 Treads 767 | 1 . . . . 138 267 . 361 . . . . Legs 277 | . . . . . 243 . 8 . . 26 . . Wheels 1948 | . . . . . 52 525 939 41 . 374 . 17 Hover 1059 | . 73 . . . 5 1 . . . 224 756 . Flight 3696 | . 297 860 1304 371 153 711 . . . . . . Fastest Speed 22 | 50 37 37 34 27 32 22 84 50 50 50 40 50 Average Speed 79 | 51 46 37 34 34 117 110 109 148 50 110 58 58 Slowest Speed 1250 | 160 200 37 37 120 330 1250 260 159 50 750 220 100 Overloaded Moves . | . . . . . . . . . . . . . Propulsion Burnouts . | . . . . . . . . . . . . . Robots Hopped 2 | . 2 . . . . . . . . . . . Potential Cave-ins . | . . . . . . . . . . . . . Cave-ins Triggered . | . . . . . . . . . . . . . Exploration Rate (%) 32 | 4 64 29 61 16 12 84 16 15 76 14 22 3 Regions Visited 12 Branch Regions 2 Pre-discovered Areas . | . . . . . . . . . . . . . Known Exits Taken 1 | . . . . . 1 . . . . . . . Unknown Exits Taken 8 | 1 1 1 1 1 . . 1 . . 1 1 . Scrap Searched 8 | . . 4 4 . . . . . . . . . Spaces Dug 40 | . . 3 . . 30 1 . . . . 6 . Terrain Destroyed 436 | . . 3 1 13 86 107 54 56 . 22 94 . Melee . | . . . . . . . . . . . . . Projectile 104 | . . 3 1 . 14 4 31 13 . 5 33 . AOE 331 | . . . . 13 72 102 23 43 . 17 61 . Terrain Rammed . | . . . . . . . . . . . . . Walls Destroyed . | . . . . . . . . . . . . . Machines Disabled . | . . . . . . . . . . . . . Actions | -11 -10 -10 -8 -6 -5 -5 -5 -4 -4 -4 -3 -2 --------- Run | Yrd Mat Sub Scr Fac Fac Gar Fac Fac Was Fac Res Res Total 10336 | 85 481 1254 1320 474 966 1827 1233 567 113 892 979 145 Wait 953 | . 20 340 . 33 210 61 115 32 . 36 94 12 Move 8103 | 72 386 859 1303 370 591 1514 946 431 107 650 763 111 Hop 2 | . 2 . . . . . . . . . . . Pick Up 102 | 6 11 3 6 5 6 17 12 8 . 17 10 1 Fast Attach 226 | 4 10 2 1 12 48 33 38 9 2 50 14 3 Attach 61 | . 3 1 . 9 6 15 . 5 . 9 10 3 Detach 26 | . . . . 5 3 5 . 2 2 3 3 3 Swap 58 | . 3 1 2 . 4 12 13 3 . 6 14 . Drop 190 | 1 16 6 7 4 24 23 47 16 2 20 22 2 Fire 484 | 2 30 42 1 36 73 78 47 55 . 68 44 8 Melee 36 | . . . . . . . . . . 31 5 . Ram 3 | . . . . . 1 . . . . . . 2 Kick . | . . . . . . . . . . . . . Crush 6 | . . . . . . . . 6 . . . . Escape Stasis 69 | . . . . . . 69 . . . . . . Rewire 17 | . . . . . . . 15 . . 2 . . Trap . | . . . . . . . . . . . . . Miscellaneous . | . . . . . . . . . . . . . Route ------- -11/Scrapyard -10/Materials (discovered 5 exits: *Mat x3 / Min / [*Sub]) -10/Subcaves (discovered 3 exits: [*Mat x2] / *Scr) -8/Scraptown -6/Factory (discovered 3 exits: *Fac / Low x2) -5/Factory (discovered 3 exits: Upp x2 / Gar) -5/Garrison (discovered 3 exits: *Fac x3) -5/Factory -4/Factory (discovered 5 exits: Upp x2 / Ext x2 / Arm) -4/Waste -4/Factory -3/Research -2/Research History --------- Turn | Location | Event 4 | -11/Scrapyard | Discovered new exit (range 15) 57 | -11/Scrapyard | Entered Materials 97 | -10/Materials | Identified exit to Materials 306 | -10/Materials | Build established: Mutant 310 | -10/Materials | Identified exit to Mines 373 | -10/Materials | Discovered new exit (range 5) 383 | -10/Materials | Entered Subcaves 384 | -10/Subcaves | Approached by a straggling Scientist 404 | -10/Subcaves | A swath of the cavern ceiling suddenly collapsed 557 | -10/Subcaves | Discovered new exit (range 14) 707 | -10/Subcaves | Ambushed by Subdwellers from Twisted Machinery 780 | -10/Subcaves | Discovered new exit (range 11) 1116 | -10/Subcaves | Shifting Twisted Machinery released Scrap Shield 1120 | -10/Subcaves | Shifting Twisted Machinery released Barrage Gun 1146 | -10/Subcaves | Entered Scraptown 1173 | -8/Scraptown | Heard Great Nut preacher, LISTEN AND RECITE! 1268 | -8/Scraptown | Discovered new exit (range 9) 1286 | -8/Scraptown | Scanned Subdweller tech in exchange for log data 1288 | -8/Scraptown | Learned Research terminal intel 1327 | -8/Scraptown | Visited Awakened 1338 | -8/Scraptown | Visited Spacefarers 1441 | -8/Scraptown | Visited Shadow of the Wyrm 1453 | -8/Scraptown | Visited TADAMA 1530 | -8/Scraptown | Visited The Evicted 1544 | -8/Scraptown | Visited CPS Storage 1585 | -8/Scraptown | Visited UFD Registry 1585 | -8/Scraptown | Registered with UFD as "Arcnade" 1600 | -8/Scraptown | Visited Science Testing Area 1601 | -8/Scraptown | Attacked by Scraptown defenders 1610 | -8/Scraptown | Core integrity fell below 50% 1618 | -8/Scraptown | Entered Factory 1618 | -6/Factory | Evolved 8 slots: Power x1, Propulsion x2, Utility x4, Weapon x1 1734 | -6/Factory | Spotted B-75 Beast 1774 | -6/Factory | Identified exit to Lower Caves 1842 | -6/Factory | Lost 12 parts (3p7n2w) 1915 | -6/Factory | Discovered new exit (range 7) 1917 | -6/Factory | Core integrity fell below 50% 1917 | -6/Factory | Entered another Factory area 1917 | -5/Factory | Evolved 2 slots: Propulsion x1, Weapon x1 1993 | -5/Factory | Fabricated R-10 Processor (x2) 1998 | -5/Factory | Fabricated H-66 Slayer (x2) 2073 | -5/Factory | Fabricated Particle Reactor (x2) 2386 | -5/Factory | Lost 3 allies 2532 | -5/Factory | Build established: Scavenger-Tank 2542 | -5/Factory | Identified exit to Upper Caves 2668 | -5/Factory | Destroyed 9 combat bots 2857 | -5/Factory | Garrison activated, responded to threat 3110 | -5/Factory | Repaired KE Penetrator 3117 | -5/Factory | First assault squad dispatched 3143 | -5/Factory | Garrison activated, responded to threat 3167 | -5/Factory | Identified exit to Garrison 3167 | -5/Factory | Entered Garrison 3217 | -5/Garrison | Triggered checkpoint 3259 | -5/Garrison | Build established: Scavenger-Gunner 3384 | -5/Garrison | Triggered checkpoint 3388 | -5/Garrison | Triggered checkpoint 3432 | -5/Garrison | Destroyed 9 combat bots 3440 | -5/Garrison | Lost 3 parts (2n1w) 3507 | -5/Garrison | Triggered checkpoint 3592 | -5/Garrison | Discovered new exit (range 15) 3609 | -5/Garrison | Triggered checkpoint 3753 | -5/Garrison | Triggered checkpoint 3949 | -5/Garrison | Triggered checkpoint 4019 | -5/Garrison | Lost 9 parts (4n2u3w) 4064 | -5/Garrison | System corruption reached 10% 4181 | -5/Garrison | Discovered new exit (range 9) 4382 | -5/Garrison | Phase Generator disabled 4401 | -5/Garrison | Installed Relay Interface Framework 4631 | -5/Garrison | Triggered checkpoint 4658 | -5/Garrison | Core integrity fell below 50% 4762 | -5/Garrison | Lost 12 parts (1p5n3u3w) 5066 | -5/Garrison | Discovered new exit (range 8) 5074 | -5/Garrison | Identified exit to Factory 5333 | -5/Garrison | Entered Factory 5842 | -5/Factory | Garrison activated, responded to threat 6518 | -5/Factory | Repaired Med. Treads 6563 | -5/Factory | Repaired Med. Treads 6697 | -5/Factory | Discovered new exit (range 9) 6767 | -5/Factory | Entered another Factory area 6767 | -4/Factory | Accompanied by 1 ally 6767 | -4/Factory | Evolved 2 slots: Utility x1, Weapon x1 7044 | -4/Factory | Build established: Scavenger-Tank 7175 | -4/Factory | Repaired Enh. Gauss Cannon 7449 | -4/Factory | Identified exit to Upper Caves 7449 | -4/Factory | Identified exit to Extension 7449 | -4/Factory | Identified exit to Armory 7612 | -4/Factory | Cargo convoy interrupted 7660 | -4/Factory | Released all parts (17) 7662 | -4/Factory | System corruption reached 10% 7674 | -4/Factory | Sucked down chute 7674 | -4/Factory | Entered Waste 7678 | -4/Waste | Spotted C-40 Crusher 7700 | -4/Waste | Spotted C-40 Crusher 7700 | -4/Waste | Spotted C-40 Crusher 7705 | -4/Waste | Spotted C-40 Crusher 7711 | -4/Waste | Spotted C-40 Crusher 7712 | -4/Waste | Spotted C-40 Crusher 7717 | -4/Waste | Core integrity fell below 50% 7729 | -4/Waste | Discovered new exit (range 10) 7733 | -4/Waste | Entered Factory 7823 | -4/Factory | Garrison activated, responded to threat 7841 | -4/Factory | Lost 3 parts (1p1u1w) 8067 | -4/Factory | Found Prototype Hackware 8067 | -4/Factory | Identified Exp. Hacking Suite 8402 | -4/Factory | Core integrity fell below 20% 8470 | -4/Factory | Lost 10 parts (1p5n2u2w) 8693 | -4/Factory | System corruption reached 30% 8833 | -4/Factory | Discovered new exit (range 15) 8882 | -4/Factory | Entered Research 8882 | -3/Research | Evolved 2 slots: Propulsion x1, Utility x1 8883 | -3/Research | Loaded intel: 22 terminal locations 9240 | -3/Research | Build established: Scavenger-Gunner 9314 | -3/Research | Fabricated Imp. Quantum Reactor (x1) 9478 | -3/Research | Central database locked down 9524 | -3/Research | Spotted B-86 Titan 9583 | -3/Research | Discovered new exit (range 15) 9649 | -3/Research | Released all parts (5) 9652 | -3/Research | Entered another Research area 9652 | -2/Research | Evolved 2 slots: Power x1, Utility x1 9678 | -2/Research | Lost 17 parts (1p7n6u3w) 9708 | -2/Research | Core integrity fell below 50% 9747 | -2/Research | Core integrity fell below 20% 9758 | -2/Research | Destroyed by G-73 Enforcer with Heavy Laser Last Messages --------------- 09660_ Acquired Arm. Huge Wheel. 09668_ Connecting with Recycling Unit... 09668_ Current location identified: Research >>Retrieve(Components) Retrieving 1 components... Adv. Recalibrator 09668_ ALERT: Suspicious activity at Recycling Unit R005. Dispatching Investigation squad. 09669_ Acquired Adv. Recalibrator. 09679_ ALERT: All DSF locations entering lockdown mode. 09688_ Dropped Adv. Recalibrator. 09689_ Dropped Lgt. Antimatter Reactor. 09695_ Slammed into G-73 Enforcer. 09701_ T-07 Excavator destroyed. 09702_ Acquired 17 matter. 09703_ Acquired Mining Laser. 09704_ Mining Laser destroyed. 09735_ Acquired Quantum Rifle. 09757_ Quantum Rifle destroyed. Map ----- +----------------------------------------------------+ | | | | | | | | | | | | | | | | | | | | | | | ????????????????????????#################????????? | | ????????????????????????# #????????? | | ????????????????????????# #????????? | | ????????????????????????# #????????? | | ????????????????????????# #????????? | | ????????????????###?????# """"" #????????? | | ???????????????? ?????# """"" #????????? | | ???????????????? ????# """"" #????????? | | ???????????????? ????# """"" #????????? | | ???????????#???"" "??? # #????????? | | ???????????# """ """ # #????????? | | ???????????# """ """ ########"###########?????? | | ???????????# """ """ ###### + #?????? | | ???????????# """ """ #!! # # #?????? | | ???????????# #@ s# # #?????? | | ???????????? # sg + """ #?????? | | ?????????????? ?# ss#g # """ #?????? | | ???????????????? ???# ]# # """ #?????? | | ##################+########### # #?????? | | # #?????? | | # #?????? | | ! ##########?????? | | ! #??????????????? | | ##+############# ##########+######????????????? | | !* #????????# #??????# #????????????? | | #????????# #??????# #????????????? | | #????????+ ?????#""" #????????????? | | #????????# ???#""" #????????????? | | #????????# ??#""" #????????????? | | #????????# ?#""" #????????????? | | "Y"" #????????######## ??""" #????????????? | | """" #???????????????? ??? #????????????? | | #######??????????????????????? #????????????? | | ??????????????????????????????#######????????????? | | ?????????????????????????????????????????????????? | | ?????????????????????????????????????????????????? | | ?????????????????????????????????????????????????? | | ?????????????????????????????????????????????????? | | ?????????????????????????????????????????????????? | +----------------------------------------------------+ Best States ------------- Heat Dissipation 122 Coolant Potential 100 Energy Generation 41 Energy Capacity 580 Matter Stores 485 Matter Capacity 700 Sight Range 16 Robot Scan Range 15 Terrain Scan Density 10 Power Amplification 60 Additional Mass Support 12 Base Temperature (-) 200 Armor Coverage 825 Resistance: KI 20 Resistance: TH 20 Resistance: EX 20 Resistance: EM 20 Resistance: I 20 Resistance: S 20 Resistance: P 20 Point Defense Rating 160 Phase Shifting 10 Evasion (%) 70 Target Analysis 9 Recoil Reduction 5 Particle Charging 20 Kinecelleration 30 Offensive Hacking 26 Defensive Hacking 10 Item Schematics ----------------- None Robot Schematics ------------------ None Fabricated ------------ R-10 Processor | x2 | -5/Factory | Preloaded H-66 Slayer | x2 | -5/Factory | Preloaded Particle Reactor | x2 | -5/Factory | Preloaded Imp. Quantum Reactor | x1 | -3/Research | Preloaded Repaired ---------- KE Penetrator | 31% | -5/Factory Med. Treads | 41% | -5/Factory Med. Treads | 72% | -5/Factory Enh. Gauss Cannon | 82% | -4/Factory Studied --------- Imp. Treads | -5/Factory | Hacked Wave Gun | -5/Factory | Hacked Gauss Cannon | -5/Factory | Hacked Angular Momentum Engine | -5/Factory | Hacked Antigrav System | -3/Research | Hacked Imp. Antigrav System | -3/Research | Hacked Alien Tech Used ----------------- None Achievements -------------- Jackpot Challenges ------------ None Game ------ Seed GravjetHypercooledParser Manual? 0 Play Time 02:51:26 Cumulative 98.8 hours Start 2025.12.28 @ 11:59:07 End 2025.12.28 @ 15:08:40 Sessions 1 Manual Loads 0 Difficulty Adventurer Special Mode None Game No. 55 Rogue 29 Adventurer 26 Explorer 0 Win Type - Total 0 Types 0/0/0/0/0/0/0/0/0/0 Lore% 42 Gallery% 45 Achievement% 32 Wizard Run 0 Options --------- Layout 1 ASCII 0 Keyboard 0 Movement Mouse Keybinds 0 Fullscreen 2 Font 32/SmallcapsGlow Map View 50x35 Zoom Use 0% Tactical HUD 1 Map Filters NONE Filters NONE Steam 1 RUN: 52ef9e3e-7bf4-4d6a-a529-146e2e5f6e35